lending/lending_fUSD_20241113
["ID","MTS","AMOUNT","RATE_DAILY","PERIOD"]
[342176978,1731535841200,-1000.0,0.00012935,2]
[342176979,1731535841209,-1000.0,0.00012935,2]
[342176980,1731535841218,-1000.0,0.00012935,2]
[342176981,1731535841230,-1000.0,0.00012935,2]
[342176982,1731535841239,-1000.0,0.00012935,2]
[342176983,1731535841248,-1000.0,0.00012935,2]
[342176984,1731535841258,-1000.0,0.00012935,2]
[342176985,1731535841268,-603.9582,0.00012935,2]
[342176986,1731535841277,-268.17872727,0.00012936,2]
[342176987,1731535841287,-2058.31053001,0.00012937,2]
[342176988,1731535841297,-5077.8858624,0.0001294,2]
[342176989,1731535841309,-2058.31053001,0.00012941,2]
[342176990,1731535841318,-182.144,0.00012943,2]
[342176991,1731535841328,-529.11,0.00012947,2]
[342176992,1731535841338,-5077.8858624,0.00012947,2]
[342176993,1731535841346,-2058.31053001,0.00012947,2]
[342176994,1731535841355,-47309.94256286,0.00012949,2]
[342176995,1731535841364,-500.0,0.00012973,2]
[342176996,1731535841374,-763.15,0.00012986,2]
[342176997,1731535841383,-763.15,0.00012986,2]
[342176998,1731535841392,-14722.7807279,0.00012987,2]
[342176999,1731535841402,-614.6509455,0.00012987,2]
[342177000,1731535841410,-1310.1781467,0.00012987,2]
[342177001,1731535841419,-8886.7262011,0.00012987,2]
[342177002,1731535841428,-1677.7550788,0.00012987,2]
[342177003,1731535841437,-5745.1973185,0.00012987,2]
[342177004,1731535841446,-2208296.89249242,0.00012994,2]
[342177005,1731535841455,-1000.0,0.00012999,2]
[342177006,1731535841464,-214.34031459,0.00012999,2]
[342177007,1731535841473,-1000.0,0.00012999,2]
[342177008,1731535841482,-1000.0,0.00012999,2]
[342177009,1731535841491,-8144.5,0.00012999,2]
[342177010,1731535841500,-1000.0,0.00012999,2]
[342177011,1731535841509,-575.92125928,0.00012999,2]
[342177012,1731535841519,-575.92125928,0.00012999,2]
[342177013,1731535841528,-171.96647049,0.00012999,2]
[342177014,1731535841537,-575.92125928,0.00012999,2]
[342177015,1731535841548,-575.92125928,0.00012999,2]
[342177016,1731535841556,-575.92125928,0.00012999,2]
[342177017,1731535841565,-575.92125928,0.00012999,2]
[342177018,1731535841574,-575.92125928,0.00012999,2]
[342177019,1731535841583,-575.92125928,0.00012999,2]
[342177020,1731535841591,-575.92125928,0.00012999,2]
[342177021,1731535841600,-575.92125928,0.00012999,2]
[342177022,1731535841609,-575.92125928,0.00012999,2]
[342177023,1731535841618,-575.92125928,0.00012999,2]
[342177024,1731535841626,-575.92125928,0.00012999,2]
[342177025,1731535841636,-575.92125928,0.00012999,2]
[342177026,1731535841645,-575.92125928,0.00012999,2]
[342177027,1731535841654,-575.92125928,0.00012999,2]
[342177028,1731535841663,-575.92125928,0.00012999,2]
[342177029,1731535841671,-575.92125928,0.00012999,2]
[342177030,1731535841680,-575.92125928,0.00012999,2]
[342177031,1731535841689,-614.3160099,0.00012999,2]
[342177032,1731535841698,-614.3160099,0.00012999,2]
[342177033,1731535841707,-614.31600989,0.00012999,2]
[342177034,1731535841715,-614.3160099,0.00012999,2]
[342177035,1731535841724,-614.3160099,0.00012999,2]
[342177036,1731535841733,-614.3160099,0.00012999,2]
[342177037,1731535841742,-614.3160099,0.00012999,2]
[342177038,1731535841750,-614.3160099,0.00012999,2]
[342177039,1731535841759,-614.3160099,0.00012999,2]
[342177040,1731535841769,-1500.0,0.00012999,2]
[342177041,1731535841777,-1008.0,0.00012999,2]
[342177042,1731535841786,-14397557.35357079,0.00013,2]
[342177043,1731535841796,-3935.08781872,0.00013,2]
[342177044,1731535841805,-1000.0,0.00013,2]
[342177045,1731535841814,-1000.0,0.00013,2]
[342177046,1731535841823,-1000.0,0.00013,2]
[342177047,1731535841832,-749.85845269,0.00013,2]
[342177048,1731535841841,-2030919.72493955,0.00013,2]
[342177049,1731535841849,-1000.0,0.00013,2]
[342177050,1731535841858,-1000.0,0.00013,2]
[342177051,1731535841867,-1000.0,0.00013,2]
[342177052,1731535841876,-1000.0,0.00013,2]
[342177053,1731535841885,-1000.0,0.00013,2]
[342177054,1731535841894,-1000.0,0.00013,2]
[342177055,1731535841903,-1000.0,0.00013,2]
[342177056,1731535841912,-1000.0,0.00013,2]
[342177057,1731535841921,-1000.0,0.00013,2]
[342177058,1731535841929,-1000.0,0.00013,2]
[342177059,1731535841938,-1000.0,0.00013,2]
[342177060,1731535841947,-1000.0,0.00013,2]
[342177061,1731535841956,-1000.0,0.00013,2]
[342177062,1731535841965,-1000.0,0.00013,2]
[342177063,1731535841974,-1000.0,0.00013,2]
[342177064,1731535841983,-1000.0,0.00013,2]
[342177065,1731535841992,-1000.0,0.00013,2]
[342177066,1731535842001,-1000.0,0.00013,2]
[342177067,1731535842010,-1000.0,0.00013,2]
[342177068,1731535842020,-1000.0,0.00013,2]
[342177069,1731535842029,-1000.0,0.00013,2]
[342177070,1731535842037,-1000.0,0.00013,2]
[342177071,1731535842046,-1000.0,0.00013,2]
[342177072,1731535842054,-1000.0,0.00013,2]
[342177073,1731535842063,-1000.0,0.00013,2]
[342177074,1731535842072,-1000.0,0.00013,2]
[342177075,1731535842081,-1000.0,0.00013,2]
[342177076,1731535842090,-1000.0,0.00013,2]
[342177077,1731535842099,-1000.0,0.00013,2]
[342177078,1731535842107,-1000.0,0.00013,2]
[342177079,1731535842116,-1000.0,0.00013,2]
[342177080,1731535842125,-1000.0,0.00013,2]
[342177081,1731535842135,-1000.0,0.00013,2]
[342177082,1731535842143,-571.49511305,0.00013,2]
[342177083,1731535842152,-15495.25490724,0.00013,3]
[342177084,1731535842161,-3450.282,0.00013,2]
[342177085,1731535842171,-763.15,0.00013041,2]
[342177086,1731535842180,-763.15,0.00013041,2]
[342177087,1731535842189,-1500.0,0.00013049,2]
[342177088,1731535842198,-1500.0,0.00013066,2]
[342177089,1731535842207,-1006.0,0.000131,2]
[342177090,1731535842216,-1081.32468767,0.0001312,2]
[342177091,1731535842227,-150.0,0.00013178,2]
[342177092,1731535842238,-224.722182,0.00013264,2]
[342177093,1731535842247,-182.80836,0.00013264,2]
[342177094,1731535842256,-269.089932,0.00013264,2]
[342177095,1731535842266,-153.45,0.00013283,2]
[342177096,1731535842276,-150.0,0.00013301,2]
[342177097,1731535842285,-150.0,0.00013301,2]
[342177098,1731535842295,-150.0,0.00013301,2]
[342177099,1731535842307,-1157.98886627,0.00013301,2]
[342177100,1731535842317,-105275.60081875,0.00013301,2]
[342177101,1731535842328,-11759.43389568,0.00013301,2]
[342177102,1731535842338,-1081.32468767,0.00013342,2]
[342177103,1731535842347,-412.7,0.00013347,2]
[342177104,1731535842358,-150.0,0.00013356,5]
[342177105,1731535842368,-306.71,0.00013375,2]
[342177106,1731535842379,-200.0,0.0001338,2]
[342177107,1731535842389,-919.09,0.00013382,2]
[342177108,1731535842399,-270.89,0.00013399,2]
[342177109,1731535842409,-182.80836,0.00013485,2]
[342177110,1731535842418,-162575.26067812,0.000135,2]
[342177111,1731535842428,-150.0,0.00013539,2]
[342177112,1731535842437,-300.0,0.00013561,2]
[342177113,1731535842447,-151.78,0.00013561,2]
[342177114,1731535842456,-150.0,0.00013561,2]
[342177115,1731535842466,-1081.32468767,0.00013565,2]
[342177116,1731535842476,-300.0,0.00013565,2]
[342177117,1731535842485,-1000.0,0.00013599,2]
[342177118,1731535842495,-168.52,0.00013602,2]
[342177119,1731535842505,-1500.0,0.00013697,2]
[342177120,1731535842516,-800.03,0.00013698,2]
[342177121,1731535842526,-153.0,0.00013699,2]
[342177122,1731535842536,-153.0,0.00013699,2]
[342177123,1731535842545,-770.65,0.00013699,2]
[342177124,1731535842555,-1650.42,0.00013699,2]
[342177125,1731535842565,-300.0,0.00013699,2]
[342177126,1731535842575,-8828.35,0.00013699,2]
[342177127,1731535842584,-5406.49,0.00013699,2]
[342177128,1731535842594,-500.0,0.00013699,2]
[342177129,1731535842603,-200.0,0.00013699,2]
[342177131,1731535842612,-150.0,0.00013699,2]
[342177132,1731535842623,-1250.0,0.000137,2]
[342177133,1731535842633,-375.0,0.000137,2]
[342177134,1731535842642,-383.7,0.000137,2]
[342177135,1731535842651,-383.7,0.000137,2]
[342177136,1731535842660,-383.7,0.000137,2]
[342177137,1731535842670,-383.7,0.000137,2]
[342177138,1731535842679,-383.7,0.000137,2]
[342177140,1731535842689,-182.80836,0.00013706,2]
[342177141,1731535842699,-155.393,0.0001373,2]
[342177142,1731535842709,-1500.0,0.00013747,2]
[342177144,1731535842719,-1500.0,0.00013766,2]
[342177145,1731535842728,-1081.32468767,0.00013787,2]
[342177146,1731535842738,-800.03,0.00013835,2]
[342177147,1731535842747,-150.0,0.00013902,2]
[342177148,1731535842758,-182.80836,0.00013927,2]
[342177149,1731535842770,-800.03,0.00013972,2]
[342177151,1731535842780,-500.0,0.00013973,2]
[342177153,1731535842789,-500.0,0.00013973,2]
[342177154,1731535842799,-500.99775112,0.00013973,2]
[342177155,1731535842808,-500.0,0.00013973,2]
[342177156,1731535842818,-500.0,0.00013973,2]
[342177157,1731535842827,-500.0,0.00013973,2]
[342177158,1731535842836,-151.83040483,0.00013973,2]
[342177159,1731535842846,-500.0,0.00013973,2]
[342177160,1731535842855,-500.0,0.00013973,2]
[342177161,1731535842865,-514.04532359,0.00013973,2]
[342177162,1731535842874,-500.0,0.00013973,2]
[342177163,1731535842883,-500.0,0.00013973,2]
[342177164,1731535842892,-500.0,0.00013973,2]
[342177165,1731535842902,-187.12330313,0.00013973,2]
[342177166,1731535842911,-500.0,0.00013973,2]
[342177167,1731535842921,-500.0,0.00013973,2]
[342177168,1731535842930,-500.0,0.00013973,2]
[342177169,1731535842940,-3268986.42709663,0.00014,2]
[342177170,1731535842950,-7995.72939843,0.00014,2]
[342177171,1731535842960,-6372912.22740507,0.00014,2]
[342177172,1731535842969,-1500.0,0.00014,2]
[342177173,1731535842979,-1511.39,0.00014,2]
[342177174,1731535842988,-295.754676,0.00014,2]
[342177175,1731535842997,-151.0,0.00014,2]
[342177176,1731535843007,-179.728072,0.00014,2]
[342177177,1731535843018,-179.728072,0.00014,2]
[342177178,1731535843028,-273.845813,0.00014,2]
[342177179,1731535843037,-273.845813,0.00014,2]
[342177180,1731535843047,-151.0,0.00014,2]
[342177181,1731535843057,-151.0,0.00014,2]
[342177182,1731535843066,-151.0,0.00014,2]
[342177183,1731535843075,-279.600975,0.00014,2]
[342177184,1731535843085,-340.115635,0.00014,2]
[342177185,1731535843095,-279.600975,0.00014,2]
[342177186,1731535843105,-151.0,0.00014,2]
[342177187,1731535843115,-340.115635,0.00014,2]
[342177188,1731535843124,-151.0,0.00014,2]
[342177189,1731535843134,-151.0,0.00014,2]
[342177190,1731535843144,-167.744767,0.00014,2]
[342177191,1731535843154,-5842.401126,0.00014,2]
[342177192,1731535843163,-5842.401126,0.00014,2]
[342177193,1731535843173,-316.937934,0.00014,2]
[342177194,1731535843182,-151.0,0.00014,2]
[342177195,1731535843191,-316.937934,0.00014,2]
[342177196,1731535843201,-159.860899,0.00014,2]
[342177197,1731535843211,-151.0,0.00014,2]
[342177198,1731535843220,-151.0,0.00014,2]
[342177199,1731535843235,-151.0,0.00014,2]
[342177200,1731535843244,-151.0,0.00014,2]
[342177201,1731535843253,-150.0,0.00014,2]
[342177202,1731535843263,-151.0,0.00014,2]
[342177203,1731535843274,-151.0,0.00014,2]
[342177204,1731535843284,-151.0,0.00014,2]
[342177205,1731535843293,-151.0,0.00014,2]
[342177206,1731535843303,-237.293947,0.00014,2]
[342177207,1731535843313,-237.293947,0.00014,2]
[342177208,1731535843324,-151.0,0.00014,2]
[342177209,1731535843333,-151.0,0.00014,2]
[342177210,1731535843343,-151.0,0.00014,2]
[342177211,1731535843353,-151.0,0.00014,2]
[342177212,1731535843362,-151.0,0.00014,2]
[342177213,1731535843371,-151.0,0.00014,2]
[342177214,1731535843381,-278.488996,0.00014,2]
[342177215,1731535843391,-150.0,0.00014,2]
[342177216,1731535843400,-2555.576371,0.00014,2]
[342177217,1731535843410,-302.217388,0.00014,2]
[342177218,1731535843420,-2555.576371,0.00014,2]
[342177220,1731535843429,-302.217388,0.00014,2]
[342177222,1731535843439,-208.742821,0.00014,2]
[342177224,1731535843448,-208.742821,0.00014,2]
[342177226,1731535843457,-151.0,0.00014,2]
[342177228,1731535843467,-377.216628,0.00014,2]
[342177230,1731535843476,-377.216628,0.00014,2]
[342177232,1731535843486,-767.639173,0.00014,2]
[342177234,1731535843495,-767.639173,0.00014,2]
[342177236,1731535843505,-151.0,0.00014,2]
[342177238,1731535843514,-3307.658345,0.00014,2]
[342177240,1731535843525,-3307.658345,0.00014,2]
[342177242,1731535843534,-151.0,0.00014,2]
[342177245,1731535843545,-213.516187,0.00014,2]
[342177247,1731535843555,-488.339044,0.00014,2]
[342177249,1731535843564,-213.516187,0.00014,2]
[342177251,1731535843575,-488.339044,0.00014,2]
[342177253,1731535843584,-191.236356,0.00014,2]
[342177255,1731535843593,-191.236356,0.00014,2]
[342177257,1731535843603,-151.0,0.00014,2]
[342177258,1731535843613,-151.0,0.00014,2]
[342177260,1731535843623,-238.675201,0.00014,2]
[342177262,1731535843632,-151.0,0.00014,2]
[342177264,1731535843643,-151.0,0.00014,2]
[342177266,1731535843652,-151.0,0.00014,2]
[342177268,1731535843661,-151.0,0.00014,2]
[342177270,1731535843670,-151.0,0.00014,2]
[342177273,1731535843680,-438.34224,0.00014,2]
[342177275,1731535843689,-438.34224,0.00014,2]
[342177277,1731535843699,-212.506213,0.00014,2]
[342177279,1731535843708,-212.506213,0.00014,2]
[342177280,1731535843717,-151.0,0.00014,2]
[342177282,1731535843727,-151.0,0.00014,2]
[342177284,1731535843736,-259.938714,0.00014,2]
[342177286,1731535843745,-151.0,0.00014,2]
[342177288,1731535843755,-259.938714,0.00014,2]
[342177290,1731535843764,-810.532928,0.00014,2]
[342177293,1731535843776,-810.532928,0.00014,2]
[342177294,1731535843785,-151.0,0.00014,2]
[342177296,1731535843795,-310.973671,0.00014,2]
[342177298,1731535843805,-1026.879408,0.00014,2]
[342177300,1731535843815,-310.973671,0.00014,2]
[342177301,1731535843825,-1026.879408,0.00014,2]
[342177302,1731535843835,-309.593965,0.00014,2]
[342177303,1731535843845,-488.727779,0.00014,2]
[342177304,1731535843854,-309.593965,0.00014,2]
[342177305,1731535843864,-1177.968181,0.00014,2]
[342177306,1731535843875,-488.727779,0.00014,2]
[342177307,1731535843885,-151.0,0.00014,2]
[342177308,1731535843896,-1177.968181,0.00014,2]
[342177309,1731535843907,-151.0,0.00014,2]
[342177310,1731535843917,-151.0,0.00014,2]
[342177311,1731535843927,-20546.0,0.00014,3]
[342177312,1731535843938,-1081.32468767,0.0001401,2]
[342177313,1731535843948,-5000.0,0.00014018,2]
[342177314,1731535843959,-25000.0,0.00014021,2]
[342177315,1731535843970,-150.0,0.00014059,2]
[342177316,1731535843981,-1259.21,0.00014089,2]
[342177317,1731535843991,-5000.0,0.00014107,2]
[342177318,1731535844002,-800.03,0.00014109,2]
[342177319,1731535844012,-5000.0,0.00014133,2]
[342177320,1731535844038,-5000.0,0.00014139,2]
[342177321,1731535844050,-150.0,0.0001414,2]
[342177322,1731535844062,-5000.0,0.00014169,2]
[342177323,1731535844076,-1575.08,0.00014173,2]
[342177324,1731535844087,-1500.0,0.00014228,2]
[342177325,1731535844098,-1081.32468767,0.00014232,2]
[342177326,1731535844108,-800.03,0.00014246,2]
[342177327,1731535844118,-24107.32,0.00014247,2]
[342177328,1731535844129,-5000.0,0.00014252,2]
[342177329,1731535844140,-5000.0,0.00014291,2]
[342177330,1731535844151,-150.0,0.00014293,2]
[342177331,1731535844161,-575.01,0.00014298,2]
[342177332,1731535844171,-5000.0,0.00014315,2]
[342177333,1731535844182,-25000.0,0.00014331,2]
[342177334,1731535844192,-300.0,0.00014352,2]
[342177335,1731535844202,-150.0,0.00014352,2]
[342177336,1731535844212,-150.0,0.00014352,2]
[342177337,1731535844224,-150.0,0.00014352,2]
[342177338,1731535844236,-150.0,0.00014352,2]
[342177339,1731535844246,-150.0,0.00014352,2]
[342177340,1731535844255,-150.0,0.00014352,2]
[342177341,1731535844267,-150.0,0.00014352,2]
[342177342,1731535844276,-150.0,0.00014352,2]
[342177343,1731535844285,-150.0,0.00014352,2]
[342177344,1731535844296,-150.0,0.00014352,2]
[342177345,1731535844306,-150.0,0.00014352,2]
[342177346,1731535844317,-1000.0,0.00014357,2]
[342177347,1731535844327,-5000.0,0.00014383,2]
[342177348,1731535844337,-800.03,0.00014383,2]
[342177349,1731535844347,-529.11,0.00014385,2]
[342177350,1731535844356,-25000.0,0.00014416,2]
[342177351,1731535844365,-150.0,0.0001442,2]
[342177352,1731535844375,-5000.0,0.00014425,2]
[342177353,1731535844384,-5000.0,0.0001443,2]
[342177354,1731535844395,-5000.0,0.00014448,2]
[342177355,1731535844406,-1081.32468767,0.00014455,2]
[342177356,1731535844415,-5000.0,0.00014457,2]
[342177357,1731535844425,-5000.0,0.00014471,2]
[342177358,1731535844435,-5000.0,0.00014477,2]
[342177359,1731535844446,-666.666666,0.00014498,2]
[342177360,1731535844455,-666.666666,0.00014498,2]
[342177361,1731535844466,-666.666666,0.00014498,2]
[342177362,1731535844476,-666.666666,0.00014498,2]
[342177363,1731535844486,-666.666666,0.00014498,2]
[342177364,1731535844496,-416.77717601,0.00014498,2]
[342177365,1731535844506,-207266.57275641,0.000145,3]
[342177366,1731535844516,-5000.0,0.00014509,2]
[342177367,1731535844539,-800.03,0.0001452,2]
[342177368,1731535844550,-1000.0,0.00014521,2]
[342177369,1731535844560,-226.97732836,0.00014521,2]
[342177370,1731535844572,-369.1180678,0.00014521,2]
[342177371,1731535844582,-1000.0,0.00014521,2]
[342177372,1731535844592,-1000.0,0.00014521,2]
[342177373,1731535844602,-1000.0,0.00014521,2]
[342177374,1731535844612,-1000.0,0.00014521,2]
[342177375,1731535844622,-1000.0,0.00014521,2]
[342177376,1731535844632,-917.17734151,0.00014521,2]
[342177377,1731535844642,-1000.0,0.00014521,2]
[342177378,1731535844653,-1000.0,0.00014521,2]
[342177379,1731535844662,-1000.0,0.00014521,2]
[342177380,1731535844672,-24871.35,0.00014591,2]
[342177381,1731535844682,-4816.5,0.00014594,2]
[342177382,1731535844692,-619.53,0.00014595,2]
[342177383,1731535844701,-1081.0,0.000146,2]
[342177384,1731535844711,-643.82,0.0001462,2]
[342177385,1731535844721,-5000.0,0.00014628,2]
[342177386,1731535844730,-5000.0,0.00014632,2]
[342177387,1731535844740,-238.6587108,0.00014637,5]
[342177388,1731535844750,-5000.0,0.0001464,2]
[342177389,1731535844760,-150.0,0.00014645,2]
[342177390,1731535844774,-563.0,0.00014645,2]
[342177391,1731535844791,-628.0,0.00014645,2]
[342177392,1731535844801,-150.0,0.00014645,2]
[342177393,1731535844811,-12072.269,0.00014645,2]
[342177394,1731535844821,-5000.0,0.0001465,2]
[342177395,1731535844830,-5000.0,0.00014651,2]
[342177396,1731535844840,-800.03,0.00014657,2]
[342177397,1731535844850,-5000.0,0.00014659,2]
[342177398,1731535844860,-1469.06,0.0001466,2]
[342177399,1731535844871,-5000.0,0.00014664,2]
[342177400,1731535844880,-25000.0,0.00014668,2]
[342177401,1731535844891,-25000.0,0.00014669,2]
[342177402,1731535844901,-269.66633053,0.00014671,2]
[342177403,1731535844911,-200.0,0.00014677,2]
[342177404,1731535844921,-1081.32468767,0.00014677,2]
[342177405,1731535844930,-153.45,0.00014692,2]
[342177406,1731535844939,-548.84,0.00014698,2]
[342177407,1731535844949,-1154.67,0.00014728,2]
[342177408,1731535844958,-4786.57,0.00014735,2]
[342177409,1731535844969,-270.89,0.00014738,2]
[342177410,1731535844980,-5000.0,0.00014751,2]
[342177411,1731535844989,-5000.0,0.00014775,2]
[342177412,1731535844999,-5000.0,0.00014777,2]
[342177413,1731535845009,-150.0,0.0001478,2]
[342177414,1731535845025,-4978.86,0.00014787,2]
[342177415,1731535845034,-800.03,0.00014794,2]
[342177416,1731535845044,-5000.0,0.00014798,2]
[342177417,1731535845317,-1013.0,0.000148,2]
[342177418,1731535845327,-16439.67760045,0.000148,2]
[342177419,1731535845338,-5000.0,0.00014805,2]
[342177420,1731535845348,-5000.0,0.0001481,2]
[342177421,1731535845358,-5000.0,0.00014816,2]
[342177422,1731535845369,-5000.0,0.00014827,2]
[342177423,1731535845379,-5000.0,0.0001484,2]
[342177424,1731535845389,-5000.0,0.00014842,2]
[342177425,1731535845399,-12034.32458372,0.0001485,2]
[342177426,1731535845410,-5000.0,0.00014858,2]
[342177427,1731535845421,-25000.0,0.0001486,2]
[342177428,1731535845430,-500.0,0.00014874,2]
[342177429,1731535845440,-5000.0,0.00014876,2]
[342177430,1731535845450,-5000.0,0.00014881,2]
[342177431,1731535845459,-19445.78477471,0.00014899,2]
[342177432,1731535845470,-1000.0,0.00014899,2]
[342177433,1731535845480,-74284.49260145,0.00014899,2]
[342177434,1731535845490,-950.1898,0.00014899,2]
[342177435,1731535845499,-1081.32468767,0.000149,2]
[342177436,1731535845509,-16031.0,0.000149,2]
[342177437,1731535845522,-2000.0,0.000149,2]
[342177438,1731535845531,-2000.0,0.000149,2]
[342177439,1731535845541,-2000.0,0.000149,2]
[342177440,1731535845550,-2000.0,0.000149,2]
[342177441,1731535845560,-2000.0,0.000149,2]
[342177442,1731535845569,-2000.0,0.000149,2]
[342177443,1731535845579,-2000.0,0.000149,2]
[342177444,1731535845589,-2000.0,0.000149,2]
[342177445,1731535845598,-1743.2894,0.000149,2]
[342177446,1731535845608,-2000.0,0.000149,2]
[342177447,1731535845618,-4010.46,0.00014926,2]
[342177448,1731535845627,-800.03,0.00014931,2]
[342177449,1731535845637,-5000.0,0.00014944,2]
[342177450,1731535845647,-3481.83,0.00014962,2]
[342177452,1731535845657,-5800.0,0.00014974,2]
[342177453,1731535845667,-5800.0,0.00014982,2]
[342177454,1731535845677,-25000.0,0.00014985,2]
[342177456,1731535845686,-5000.0,0.00014987,2]
[342177457,1731535845696,-2001.506139,0.0001499,3]
[342177459,1731535845706,-38546.88979403,0.0001499,2]
[342177460,1731535845715,-13203.0943836,0.0001499,2]
[342177461,1731535845725,-11683.4080393,0.0001499,2]
[342177462,1731535845735,-10163.721695,0.0001499,2]
[342177463,1731535845744,-8644.0353506,0.0001499,2]
[342177464,1731535845753,-7124.3490063,0.0001499,2]
[342177465,1731535845762,-533.8861745,0.0001499,2]
[342177466,1731535845777,-453.1214034,0.0001499,2]
[342177467,1731535845786,-372.3566324,0.0001499,2]
[342177468,1731535845795,-291.5918614,0.0001499,2]
[342177469,1731535845805,-210.8270903,0.0001499,2]
[342177470,1731535845815,-1138.6844301,0.0001499,2]
[342177471,1731535845824,-967.1907136,0.0001499,2]
[342177472,1731535845835,-795.6969971,0.0001499,2]
[342177473,1731535845844,-624.2032806,0.0001499,2]
[342177474,1731535845854,-7728.0255295,0.0001499,2]
[342177475,1731535845863,-6569.3248579,0.0001499,2]
[342177476,1731535845873,-5410.6241864,0.0001499,2]
[342177477,1731535845888,-4251.9235148,0.0001499,2]
[342177478,1731535845899,-1459.0000623,0.0001499,2]
[342177479,1731535845909,-1240.2450458,0.0001499,2]
[342177480,1731535845919,-1021.4900293,0.0001499,2]
[342177481,1731535845929,-802.7350129,0.0001499,2]
[342177482,1731535845939,-4999.2451825,0.0001499,2]
[342177483,1731535845950,-4253.2930465,0.0001499,2]
[342177484,1731535845961,-3507.3409106,0.0001499,2]
[342177485,1731535845972,-2761.3887746,0.0001499,2]
[342177486,1731535845982,-5800.0,0.0001499,2]
[342177487,1731535845991,-500.0,0.00014998,2]
[342177488,1731535846001,-424.70051442,0.00014998,2]
[342177489,1731535846011,-20040.33994389,0.00014999,2]
[342177490,1731535846027,-25309.52715518,0.00014999,2]
[342177491,1731535846038,-5800.0,0.00014999,2]
[342177492,1731535846048,-151.0,0.00014999,2]
[342177493,1731535846059,-351.483423,0.00014999,2]
[342177494,1731535846069,-151.650044,0.00014999,2]
[342177495,1731535846079,-151.650044,0.00014999,2]
[342177496,1731535846090,-5800.0,0.00014999,2]
[342177497,1731535846100,-1000.0,0.00014999,2]
[342177498,1731535846110,-151.0,0.00014999,2]
[342177499,1731535846120,-151.0,0.00014999,2]
[342177500,1731535846130,-151.0,0.00014999,2]
[342177501,1731535846139,-3927.01405772,0.00014999,2]
[342177502,1731535846150,-20543553.90744503,0.00015,2]
[342177503,1731535846159,-1672284.13022153,0.00015,2]
[342177504,1731535846168,-4927091.40570403,0.00015,2]
[342177505,1731535846179,-1769.92,0.00015,3]
[342177506,1731535846188,-2061915.34340009,0.00015,2]
[342177507,1731535846198,-1945.71663588,0.00015,2]
[342177508,1731535846208,-43193437.52268943,0.00015,2]
[342177520,1731535847540,-8606232.72,0.00015,2]
[342177521,1731535847552,-1821158.295,0.00015,2]
[342177522,1731535847564,-2252851.10892,0.00015,2]
[342177523,1731535847576,-396.26550234,0.00015,2]
[342177524,1731535847587,-2622.80301504,0.00015,2]
[342177525,1731535847603,-1815.33,0.00015,2]
[342177526,1731535847614,-5536.68998109,0.00015,2]
[342177527,1731535847629,-2556.50748124,0.00015,2]
[342177528,1731535847768,-874.14581025,0.00010738,2]
[342177529,1731535847784,-125.85418975,0.00010738,2]
[342177530,1731535847794,-1000.0,0.0001208,2]
[342177531,1731535847804,-1000.0,0.00013422,2]
[342177532,1731535847814,-1000.0,0.00014765,2]
[342177533,1731535847824,-78.72025426,0.00015,2]
[342177534,1731535847839,-14617.01277206,0.00015,2]
[342177535,1731535848030,-262.32402593,0.00011641,2]
[342177536,1731535848041,-500.82597407,0.00011641,2]
[342177537,1731535848051,-1552.90468993,0.00012994,2]